fUSD/lending_fUSD_20240125
["ID","MTS","AMOUNT","RATE_DAILY","PERIOD"]
[312667122,1706141535279,-649.59,0.00052328,31]
[312667123,1706141535291,-1086.36,0.00052328,31]
[312667124,1706141535303,-959.04,0.00052328,31]
[312667125,1706141535312,-500.0,0.00052328,31]
[312667126,1706141535322,-703.22,0.00052328,31]
[312667127,1706141535333,-787.85,0.00052328,31]
[312667128,1706141535343,-179.230615,0.00052328,31]
[312667129,1706141535353,-730.54,0.00052328,31]
[312667130,1706141535362,-765.5,0.00052328,31]
[312667131,1706141535372,-600.26,0.00052328,31]
[312667132,1706141535382,-500.0,0.00052328,31]
[312667133,1706141535391,-740.74,0.00052328,31]
[312667134,1706141535401,-500.0,0.00052328,31]
[312667135,1706141535410,-599.29,0.00052328,31]
[312667136,1706141535420,-500.0,0.00052328,31]
[312667137,1706141535429,-737.72,0.00052328,31]
[312667138,1706141535439,-500.55,0.00052328,31]
[312667139,1706141535448,-847.8,0.00052328,31]
[312667140,1706141535458,-500.0,0.00052328,31]
[312667141,1706141535467,-539.53,0.00052328,31]
[312667142,1706141535477,-500.0,0.00052328,31]
[312667143,1706141535486,-501.79,0.00052328,31]
[312667144,1706141535495,-560.58,0.00052328,31]
[312667145,1706141535505,-714.81,0.00052328,31]
[312667146,1706141535514,-765.11,0.00052328,31]
[312667147,1706141535524,-500.0,0.00052328,31]
[312667148,1706141535534,-500.0,0.00052328,31]
[312667149,1706141535543,-500.0,0.00052328,31]
[312667150,1706141535552,-1451.54,0.00052328,31]
[312667151,1706141535561,-764.66,0.00052328,31]
[312667152,1706141535571,-673.27,0.00052328,31]
[312667153,1706141535581,-1105.43,0.00052328,31]
[312667154,1706141535590,-3144.18,0.00052328,31]
[312667155,1706141535599,-500.0,0.00052328,31]
[312667156,1706141535610,-748.16,0.00052328,31]
[312667157,1706141535619,-678.69,0.00052328,31]
[312667158,1706141535629,-500.0,0.00052328,120]
[312667159,1706141535638,-548.31,0.00052328,31]
[312667160,1706141535648,-500.0,0.00052328,31]
[312667161,1706141535657,-532.81,0.00052328,31]
[312667162,1706141535667,-515.5,0.00052328,31]
[312667163,1706141535676,-792.67,0.00052328,31]
[312667164,1706141535685,-500.0,0.00052328,31]
[312667165,1706141535694,-1247.69,0.00052328,31]
[312667166,1706141535704,-1295.4,0.00052328,31]
[312667167,1706141535714,-612.72,0.00052328,31]
[312667168,1706141535723,-820.44,0.00052328,31]
[312667169,1706141535733,-500.0,0.00052328,31]
[312667170,1706141535743,-939.98,0.00052328,31]
[312667171,1706141535752,-689.9,0.00052328,31]
[312667172,1706141535762,-500.0,0.00052328,31]
[312667173,1706141535772,-650.74,0.00052328,31]
[312667174,1706141535782,-3710.41,0.00052328,31]
[312667175,1706141535791,-594.93,0.00052328,2]
[312667176,1706141535801,-646.07,0.00052328,31]
[312667177,1706141535810,-500.0,0.00052328,31]
[312667178,1706141535820,-2728.94,0.00052328,31]
[312667179,1706141535829,-500.0,0.00052328,31]
[312667180,1706141535839,-500.0,0.00052328,31]
[312667181,1706141535848,-1281.32,0.00052328,31]
[312667182,1706141535859,-1822.59,0.00052328,2]
[312667183,1706141535868,-500.0,0.00052328,31]
[312667184,1706141535878,-500.0,0.00052328,31]
[312667185,1706141535887,-500.0,0.00052328,31]
[312667186,1706141535896,-500.0,0.00052328,31]
[312667187,1706141535906,-500.0,0.00052328,31]
[312667188,1706141535917,-500.0,0.00052328,31]
[312667189,1706141535928,-1129.79,0.00052328,31]
[312667190,1706141535938,-605.74,0.00052328,31]
[312667191,1706141535947,-500.0,0.00052328,31]
[312667192,1706141535957,-500.0,0.00052328,31]
[312667193,1706141535968,-724.18,0.00052328,31]
[312667194,1706141535978,-824.96,0.00052328,31]
[312667195,1706141535988,-887.42,0.00052328,31]
[312667196,1706141535997,-640.31927198,0.00052328,31]
[312667197,1706141536007,-866.53,0.00052328,31]
[312667198,1706141536018,-500.0,0.00052328,31]
[312667199,1706141536027,-510.96,0.00052328,31]
[312667200,1706141536039,-757.86,0.00052328,2]
[312667201,1706141536050,-500.0,0.00052328,31]
[312667202,1706141536060,-500.0,0.00052328,31]
[312667203,1706141536070,-887.79,0.00052328,31]
[312667204,1706141536080,-566.99,0.00052328,31]
[312667205,1706141536090,-163.0,0.00052329,9]
[312667206,1706141536099,-244.0,0.00052329,7]
[312667207,1706141536110,-176.58520058,0.0005237,60]
[312667208,1706141536119,-65670.0,0.0005238,30]
[312667209,1706141536128,-1151.0,0.0005238,30]
[312667210,1706141536138,-328.0,0.0005238,30]
[312667211,1706141536147,-153.95702124,0.00052395,60]
[312667212,1706141536157,-1000.0,0.000524,20]
[312667213,1706141536167,-210.0,0.000524,40]
[312667214,1706141536177,-452.49609033,0.00052406,60]
[312667215,1706141536186,-150.0,0.00052411,120]
[312667216,1706141536196,-432.40353136,0.00052412,60]
[312667217,1706141536206,-150.37716717,0.00052422,60]
[312667218,1706141536216,-302.0,0.00052424,4]
[312667219,1706141536226,-168.71792368,0.00052435,60]
[312667220,1706141536236,-250.0,0.0005247,7]
[312667221,1706141536247,-200.0,0.0005247,7]
[312667222,1706141536257,-150.0,0.00052487,2]
[312667223,1706141536266,-176.58520058,0.00052498,60]
[312667224,1706141536276,-950000.0,0.000525,120]
[312667225,1706141536289,-156.05615207,0.000525,2]
[312667226,1706141536298,-78673.27004546,0.000525,21]
[312667227,1706141536308,-1000.0,0.000525,30]
[312667228,1706141536318,-626612.86659548,0.000525,120]
[312667229,1706141537046,-373387.13340452,0.000525,120]
[312667230,1706141537056,-210.0,0.000525,120]
[312667231,1706141537065,-450.0,0.000525,5]
[312667232,1706141537075,-450.0,0.000525,5]
[312667233,1706141537084,-153.87365434,0.00052502,60]
[312667234,1706141537093,-167.60687398,0.00052541,60]
[312667235,1706141537103,-1551.0,0.0005255,7]
[312667236,1706141537112,-176.58520058,0.00052561,60]
[312667237,1706141537121,-697.53,0.00052602,31]
[312667238,1706141537130,-632.99,0.00052602,31]
[312667239,1706141537140,-500.0,0.00052602,31]
[312667240,1706141537149,-475.80927978,0.00052602,31]
[312667241,1706141537158,-500.0,0.00052602,31]
[312667242,1706141537168,-342.82900521,0.00052602,31]
[312667243,1706141537177,-571.87,0.00052602,31]
[312667244,1706141537186,-500.0,0.00052602,31]
[312667245,1706141537196,-500.0,0.00052602,31]
[312667246,1706141537205,-376.03686142,0.00052602,31]
[312667247,1706141537214,-500.0,0.00052602,31]
[312667248,1706141537224,-500.0,0.00052602,31]
[312667249,1706141537233,-500.0,0.00052602,31]
[312667250,1706141537242,-555.93656687,0.00052602,31]
[312667251,1706141537251,-500.0,0.00052602,31]
[312667252,1706141537261,-500.0,0.00052602,31]
[312667253,1706141537270,-500.0,0.00052602,31]
[312667254,1706141537279,-185.85012594,0.00052602,31]
[312667255,1706141537293,-500.0,0.00052602,31]
[312667256,1706141537303,-588.81128992,0.00052602,31]
[312667257,1706141537312,-500.0,0.00052602,31]
[312667258,1706141537322,-500.0,0.00052602,31]
[312667259,1706141537331,-500.0,0.00052602,31]
[312667260,1706141537342,-500.0,0.00052602,31]
[312667261,1706141537351,-500.0,0.00052602,31]
[312667262,1706141537361,-605.95484284,0.00052602,31]
[312667263,1706141537371,-569.3,0.00052602,31]
[312667264,1706141537382,-547.01,0.00052602,31]
[312667265,1706141537392,-500.0,0.00052602,31]
[312667266,1706141537401,-500.0,0.00052602,31]
[312667267,1706141537410,-500.0,0.00052602,31]
[312667268,1706141537420,-510.64,0.00052602,31]
[312667269,1706141537430,-419.45624987,0.00052602,31]
[312667270,1706141537439,-500.0,0.00052602,31]
[312667271,1706141537449,-500.0,0.00052602,31]
[312667272,1706141537458,-500.0,0.00052602,31]
[312667273,1706141537468,-500.0,0.00052602,31]
[312667274,1706141537478,-500.0,0.00052602,31]
[312667275,1706141537487,-754.82,0.00052602,31]
[312667276,1706141537496,-459.26492553,0.00052602,31]
[312667277,1706141537505,-500.0,0.00052602,31]
[312667278,1706141537515,-917.61,0.00052602,31]
[312667279,1706141537524,-500.0,0.00052602,31]
[312667280,1706141537533,-500.0,0.00052602,2]
[312667281,1706141537542,-500.0,0.00052602,31]
[312667282,1706141537551,-500.0,0.00052602,31]
[312667283,1706141537561,-500.0,0.00052602,31]
[312667284,1706141537571,-665.93,0.00052602,31]
[312667285,1706141537581,-500.0,0.00052602,31]
[312667286,1706141537592,-702.69,0.00052602,31]
[312667287,1706141537601,-500.0,0.00052602,31]
[312667288,1706141537611,-500.0,0.00052602,31]
[312667289,1706141537620,-619.19,0.00052602,31]
[312667290,1706141537629,-953.39,0.00052602,31]
[312667291,1706141537639,-500.0,0.00052602,2]
[312667292,1706141537648,-500.0,0.00052602,31]
[312667293,1706141537657,-500.0,0.00052602,31]
[312667294,1706141537667,-500.0,0.00052602,31]
[312667295,1706141537676,-500.0,0.00052602,31]
[312667296,1706141537685,-500.0,0.00052602,31]
[312667297,1706141537695,-500.0,0.00052602,31]
[312667298,1706141537704,-500.0,0.00052602,31]
[312667299,1706141537713,-523.13,0.00052602,31]
[312667300,1706141537723,-500.0,0.00052602,31]
[312667301,1706141537732,-500.0,0.00052602,31]
[312667302,1706141537741,-262.68373098,0.00052602,31]
[312667303,1706141537751,-623.40863021,0.00052602,31]
[312667304,1706141537760,-500.0,0.00052602,31]
[312667305,1706141537770,-500.0,0.00052602,31]
[312667306,1706141537780,-539.3,0.00052602,31]
[312667307,1706141537789,-500.0,0.00052602,31]
[312667308,1706141537798,-500.0,0.00052602,31]
[312667309,1706141537807,-500.0,0.00052602,31]
[312667310,1706141537816,-500.0,0.00052602,31]
[312667311,1706141537826,-557.24,0.00052602,31]
[312667312,1706141537835,-500.0,0.00052602,31]
[312667313,1706141537845,-500.0,0.00052602,31]
[312667314,1706141537856,-500.0,0.00052602,31]
[312667315,1706141537865,-500.0,0.00052602,31]
[312667316,1706141537875,-500.0,0.00052602,31]
[312667317,1706141537885,-500.0,0.00052602,31]
[312667318,1706141537894,-500.0,0.00052602,31]
[312667319,1706141537903,-500.0,0.00052602,31]
[312667320,1706141537912,-500.0,0.00052602,31]
[312667321,1706141537921,-500.0,0.00052602,31]
[312667322,1706141537931,-596.67,0.00052602,31]
[312667323,1706141537941,-500.0,0.00052602,31]
[312667324,1706141537951,-500.0,0.00052602,31]
[312667325,1706141537960,-500.0,0.00052602,31]
[312667326,1706141537969,-650.62,0.00052602,31]
[312667327,1706141537979,-530.57,0.00052602,31]
[312667328,1706141537988,-590.77,0.00052602,31]
[312667329,1706141537997,-500.0,0.00052602,31]
[312667330,1706141538007,-500.0,0.00052602,31]
[312667331,1706141538016,-500.0,0.00052602,31]
[312667332,1706141538025,-500.0,0.00052602,31]
[312667333,1706141538035,-537.66,0.00052602,31]
[312667334,1706141538045,-529.72,0.00052602,31]
[312667335,1706141538055,-500.0,0.00052602,31]
[312667336,1706141538065,-500.0,0.00052602,31]
[312667337,1706141538074,-668.66,0.00052602,31]
[312667338,1706141538084,-500.0,0.00052602,31]
[312667339,1706141538093,-500.0,0.00052602,31]
[312667340,1706141538102,-500.0,0.00052602,31]
[312667341,1706141538114,-500.0,0.00052602,31]
[312667342,1706141538125,-992.14,0.00052602,120]
[312667343,1706141538134,-500.0,0.00052602,31]
[312667344,1706141538143,-324.90666377,0.00052602,31]
[312667345,1706141538153,-502.97,0.00052602,31]
[312667346,1706141538162,-500.0,0.00052602,31]
[312667347,1706141538172,-500.0,0.00052602,31]
[312667348,1706141538181,-150.78908919,0.00052602,31]
[312667349,1706141538190,-500.0,0.00052602,31]
[312667350,1706141538200,-500.0,0.00052602,31]
[312667351,1706141538209,-500.0,0.00052602,31]
[312667352,1706141538219,-500.0,0.00052602,31]
[312667353,1706141538229,-500.0,0.00052602,31]
[312667354,1706141538238,-500.0,0.00052602,31]
[312667355,1706141538248,-500.0,0.00052602,31]
[312667356,1706141538258,-500.0,0.00052602,31]
[312667357,1706141538267,-626.76,0.00052602,31]
[312667358,1706141538276,-500.0,0.00052602,31]
[312667359,1706141538286,-559.80053151,0.00052602,31]
[312667360,1706141538296,-524.2,0.00052602,31]
[312667361,1706141538306,-500.0,0.00052602,31]
[312667362,1706141538315,-697.72,0.00052602,2]
[312667363,1706141538324,-500.0,0.00052602,31]
[312667364,1706141538334,-500.0,0.00052602,31]
[312667365,1706141538344,-500.0,0.00052602,31]
[312667366,1706141538356,-502.99,0.00052602,31]
[312667367,1706141538365,-500.0,0.00052602,31]
[312667368,1706141538376,-500.0,0.00052602,31]
[312667369,1706141538386,-500.0,0.00052602,31]
[312667370,1706141538395,-1084.63,0.00052602,31]
[312667371,1706141538405,-500.0,0.00052602,31]
[312667372,1706141538414,-500.0,0.00052602,31]
[312667373,1706141538424,-500.0,0.00052602,31]
[312667374,1706141538433,-500.0,0.00052602,31]
[312667375,1706141538443,-500.0,0.00052602,31]
[312667376,1706141538452,-500.0,0.00052602,31]
[312667377,1706141538462,-500.0,0.00052602,31]
[312667378,1706141538472,-500.0,0.00052602,31]
[312667379,1706141538481,-500.0,0.00052602,31]
[312667380,1706141538490,-500.0,0.00052602,31]
[312667381,1706141538500,-500.0,0.00052602,31]
[312667382,1706141538509,-563.82,0.00052602,31]
[312667383,1706141538519,-500.0,0.00052602,31]
[312667384,1706141538528,-1246.63,0.00052602,7]
[312667385,1706141538538,-500.0,0.00052602,31]
[312667386,1706141538547,-500.0,0.00052602,31]
[312667387,1706141538557,-669.25,0.00052602,20]
[312667388,1706141538566,-500.0,0.00052602,31]
[312667389,1706141538576,-500.0,0.00052602,31]
[312667390,1706141538585,-500.0,0.00052602,31]
[312667391,1706141538595,-430.24682,0.00052602,31]
[312667392,1706141538605,-500.0,0.00052602,31]
[312667393,1706141538615,-500.0,0.00052602,31]
[312667394,1706141538624,-500.0,0.00052602,31]
[312667395,1706141538633,-500.0,0.00052602,31]
[312667396,1706141538643,-500.0,0.00052602,31]
[312667397,1706141538652,-500.0,0.00052602,31]
[312667398,1706141538662,-325.03909589,0.00052602,31]
[312667399,1706141538671,-500.0,0.00052602,31]
[312667400,1706141538681,-500.0,0.00052602,31]
[312667401,1706141538690,-523.88,0.00052602,31]
[312667402,1706141538699,-500.0,0.00052602,14]
[312667403,1706141538708,-500.0,0.00052602,31]
[312667404,1706141538718,-500.0,0.00052602,31]
[312667405,1706141538727,-500.0,0.00052602,31]
[312667406,1706141538736,-500.0,0.00052602,31]
[312667407,1706141538745,-1157.14,0.00052602,31]
[312667408,1706141538755,-526.57,0.00052602,31]
[312667409,1706141538764,-1233.91,0.00052602,7]
[312667410,1706141538774,-500.0,0.00052602,31]
[312667411,1706141538783,-500.0,0.00052602,31]
[312667412,1706141538792,-500.0,0.00052602,31]
[312667413,1706141538801,-500.0,0.00052602,31]
[312667414,1706141538811,-500.0,0.00052602,31]
[312667415,1706141538820,-500.0,0.00052602,31]
[312667416,1706141538830,-594.98,0.00052602,31]
[312667417,1706141538839,-4118.15,0.00052602,15]
[312667418,1706141538848,-500.0,0.00052602,31]
[312667419,1706141538859,-500.0,0.00052602,31]
[312667420,1706141538869,-500.0,0.00052602,31]
[312667421,1706141538878,-621.48,0.00052602,31]
[312667422,1706141538888,-500.0,0.00052602,31]
[312667423,1706141538897,-1968.51,0.00052602,31]
[312667424,1706141538906,-500.0,0.00052602,31]
[312667425,1706141538916,-500.0,0.00052602,31]
[312667426,1706141538925,-500.0,0.00052602,31]
[312667427,1706141538934,-500.0,0.00052602,31]
[312667428,1706141538944,-937.73,0.00052602,2]
[312667429,1706141538953,-500.0,0.00052602,31]
[312667430,1706141538962,-4141.1,0.00052602,31]
[312667431,1706141538972,-500.0,0.00052602,31]
[312667432,1706141538981,-500.0,0.00052602,31]
[312667433,1706141538990,-500.0,0.00052602,31]
[312667434,1706141538999,-500.0,0.00052602,31]
[312667435,1706141539008,-500.0,0.00052602,31]
[312667436,1706141539017,-500.0,0.00052602,31]
[312667437,1706141539026,-500.0,0.00052602,31]
[312667438,1706141539035,-500.0,0.00052602,31]
[312667439,1706141539044,-500.0,0.00052602,31]
[312667440,1706141539053,-728.06,0.00052602,31]
[312667441,1706141539063,-500.0,0.00052602,31]
[312667442,1706141539072,-500.0,0.00052602,31]
[312667443,1706141539081,-500.0,0.00052602,31]
[312667444,1706141539091,-305.90772419,0.00052602,31]
[312667445,1706141539100,-973.03,0.00052602,2]
[312667446,1706141539111,-500.0,0.00052602,31]
[312667447,1706141539121,-500.0,0.00052602,31]
[312667448,1706141539130,-500.0,0.00052602,31]
[312667449,1706141539139,-1697.01,0.00052602,31]
[312667450,1706141539149,-500.0,0.00052602,31]
[312667451,1706141539158,-500.0,0.00052602,31]
[312667452,1706141539168,-556.66,0.00052602,31]
[312667453,1706141539292,-374.30280388,0.00052602,31]
[312667454,1706141539305,-500.0,0.00052602,31]
[312667455,1706141539314,-797.85,0.00052602,31]
[312667456,1706141539324,-500.0,0.00052602,31]
[312667457,1706141539334,-508.04,0.00052602,31]
[312667458,1706141539345,-302.42549476,0.00052602,31]
[312667459,1706141539355,-659.17,0.00052602,31]
[312667460,1706141539365,-681.8,0.00052602,31]
[312667461,1706141539374,-514.92,0.00052602,31]
[312667462,1706141539386,-500.0,0.00052602,31]
[312667463,1706141539396,-520.3,0.00052602,31]
[312667464,1706141539405,-717.84,0.00052602,31]
[312667465,1706141539415,-1187.72,0.00052602,31]
[312667466,1706141539424,-563.62,0.00052602,31]
[312667467,1706141539434,-500.0,0.00052602,31]
[312667468,1706141539443,-500.0,0.00052602,31]
[312667469,1706141539452,-203.82,0.00052602,31]
[312667470,1706141539461,-500.0,0.00052602,31]
[312667471,1706141539471,-1119.03,0.00052602,2]
[312667472,1706141539481,-551.67,0.00052602,31]
[312667473,1706141539491,-1126.94,0.00052602,31]
[312667474,1706141539500,-1035.65,0.00052602,31]
[312667475,1706141539510,-500.0,0.00052602,31]
[312667476,1706141539519,-738.6,0.00052602,31]
[312667477,1706141539528,-500.0,0.00052602,31]
[312667478,1706141539538,-1041.4,0.00052602,31]
[312667479,1706141539547,-665.87,0.00052602,31]
[312667480,1706141539557,-511.53,0.00052602,31]
[312667481,1706141539567,-531.79,0.00052602,31]
[312667482,1706141539576,-693.29,0.00052602,31]
[312667483,1706141539629,-1258.54,0.00052602,31]
[312667484,1706141539639,-569.14,0.00052602,31]
[312667485,1706141539650,-433.65552079,0.00052602,31]
[312667486,1706141539659,-558.16994636,0.00052602,31]
[312667487,1706141539669,-566.1085892,0.00052602,31]
[312667488,1706141539678,-523.57,0.00052602,31]
[312667489,1706141539687,-500.0,0.00052602,31]
[312667490,1706141539697,-3674.77,0.00052602,31]
[312667491,1706141539706,-3124.04,0.00052602,31]
[312667492,1706141539715,-1845.53,0.00052602,31]
[312667493,1706141539725,-500.0,0.00052602,31]
[312667494,1706141539734,-698.55,0.00052602,31]
[312667495,1706141539744,-500.0,0.00052602,31]
[312667496,1706141539753,-3836.74,0.00052602,5]
[312667497,1706141539762,-1206.46,0.00052602,31]
[312667498,1706141539772,-1295.76,0.00052602,31]
[312667499,1706141539785,-500.0,0.00052602,31]
[312667500,1706141539795,-500.0,0.00052602,31]
[312667501,1706141539805,-500.0,0.00052602,31]
[312667502,1706141539814,-500.0,0.00052602,31]
[312667503,1706141539824,-766.32,0.00052602,31]
[312667504,1706141539834,-500.0,0.00052602,31]
[312667505,1706141539844,-944.79,0.00052602,31]
[312667506,1706141539853,-585.71,0.00052602,31]
[312667507,1706141539864,-5283.49,0.00052602,5]
[312667508,1706141539874,-500.0,0.00052602,31]
[312667509,1706141539884,-500.0,0.00052602,31]
[312667510,1706141539894,-718.1,0.00052602,31]
[312667511,1706141539904,-966.39,0.00052602,31]
[312667512,1706141539914,-1006.46,0.00052602,31]
[312667513,1706141539924,-517.29,0.00052602,31]
[312667514,1706141539935,-8715.7,0.00052602,31]
[312667515,1706141539945,-567.82,0.00052602,31]
[312667516,1706141539956,-500.0,0.00052602,31]
[312667517,1706141539967,-608.48,0.00052602,31]
[312667518,1706141539977,-279.32819824,0.00052602,31]
[312667519,1706141539987,-500.0,0.00052602,31]
[312667520,1706141539996,-5784.02,0.00052602,31]
[312667521,1706141540006,-672.35,0.00052602,31]
[312667522,1706141540016,-719.02,0.00052602,31]
[312667523,1706141540026,-571.27,0.00052602,31]
[312667524,1706141540035,-660.52,0.00052602,31]
[312667525,1706141540045,-500.0,0.00052602,31]
[312667526,1706141540055,-500.0,0.00052602,31]
[312667527,1706141540064,-681.13,0.00052602,31]
[312667528,1706141540074,-500.0,0.00052602,31]
[312667529,1706141540084,-500.0,0.00052602,31]
[312667530,1706141540094,-500.0,0.00052602,31]
[312667531,1706141540104,-687.75,0.00052602,31]
[312667532,1706141540114,-742.38,0.00052602,31]
[312667533,1706141540124,-2393.75,0.00052602,31]
[312667534,1706141540133,-647.69,0.00052602,120]
[312667535,1706141540143,-5066.61,0.00052602,31]
[312667536,1706141540153,-500.0,0.00052602,31]
[312667537,1706141540163,-500.0,0.00052602,31]
[312667538,1706141540172,-572.67,0.00052602,31]
[312667539,1706141540182,-2453.54,0.00052602,31]
[312667540,1706141540192,-500.0,0.00052602,31]
[312667541,1706141540202,-2701.77,0.00052602,31]
[312667542,1706141540212,-500.0,0.00052602,31]
[312667543,1706141540221,-580.27,0.00052602,31]
[312667544,1706141540231,-584.5,0.00052602,31]
[312667545,1706141540241,-1360.18,0.00052602,31]
[312667546,1706141540252,-1141.79,0.00052602,31]
[312667547,1706141540262,-543.89,0.00052602,31]
[312667548,1706141540272,-1000.0,0.00052602,2]
[312667549,1706141540289,-693.55,0.00052602,31]
[312667550,1706141540303,-500.0,0.00052602,31]
[312667551,1706141540313,-683.16,0.00052602,31]
[312667552,1706141540323,-500.0,0.00052602,31]
[312667553,1706141540334,-500.0,0.00052602,31]
[312667554,1706141540344,-500.0,0.00052602,31]
[312667555,1706141540355,-608.94,0.00052602,31]
[312667556,1706141540367,-835.92,0.00052602,31]
[312667557,1706141540379,-1468.94,0.00052602,31]
[312667558,1706141540390,-578.45,0.00052602,31]
[312667559,1706141540401,-640.40461725,0.00052602,31]
[312667560,1706141540411,-552.79,0.00052602,31]
[312667561,1706141540421,-2066.55,0.00052602,31]
[312667562,1706141540431,-706.67,0.00052602,31]
[312667563,1706141540442,-500.0,0.00052602,31]
[312667564,1706141540452,-540.87,0.00052602,31]
[312667565,1706141540462,-582.15,0.00052602,31]
[312667566,1706141540472,-639.06,0.00052602,31]
[312667567,1706141540482,-488.03190003,0.00052602,31]
[312667568,1706141540492,-500.0,0.00052602,31]
[312667569,1706141540502,-740.88,0.00052602,31]
[312667570,1706141540512,-700.44,0.00052602,31]
[312667571,1706141540522,-500.0,0.00052602,31]
[312667572,1706141540532,-500.0,0.00052602,31]
[312667573,1706141540543,-751.1,0.00052602,31]
[312667574,1706141540553,-677.43,0.00052602,31]
[312667575,1706141540564,-537.04,0.00052602,31]
[312667576,1706141540574,-2280.94,0.00052602,31]
[312667577,1706141540584,-377.03526525,0.00052602,31]
[312667578,1706141540594,-547.24,0.00052602,31]
[312667579,1706141540604,-500.0,0.00052602,31]
[312667580,1706141540617,-500.0,0.00052602,31]
[312667581,1706141540627,-500.0,0.00052602,31]
[312667582,1706141540637,-1060.9,0.00052602,31]
[312667583,1706141540647,-581.01,0.00052602,31]
[312667584,1706141540657,-573.32196618,0.00052602,31]
[312667585,1706141540667,-537.1,0.00052602,31]
[312667586,1706141540677,-778.86,0.00052602,31]
[312667587,1706141540688,-857.21,0.00052602,31]
[312667588,1706141540698,-1735.79,0.00052602,31]
[312667589,1706141540708,-500.0,0.00052602,31]
[312667590,1706141540718,-500.0,0.00052602,31]
[312667591,1706141540728,-500.0,0.00052602,31]
[312667592,1706141540738,-608.69,0.00052602,31]
[312667593,1706141540747,-500.0,0.00052602,31]
[312667594,1706141540757,-606.25,0.00052602,31]
[312667595,1706141540767,-500.0,0.00052602,31]
[312667596,1706141540777,-533.45378978,0.00052602,31]
[312667597,1706141540787,-712.54,0.00052602,31]
[312667598,1706141540797,-645.15,0.00052602,31]
[312667599,1706141540807,-1073.61,0.00052602,31]
[312667600,1706141540817,-660.57,0.00052602,31]
[312667601,1706141540827,-1320.68,0.00052602,31]
[312667602,1706141540837,-992.0,0.00052602,31]
[312667603,1706141540848,-655.7,0.00052602,31]
[312667604,1706141540860,-500.0,0.00052602,31]
[312667605,1706141540871,-1315.35,0.00052602,31]
[312667606,1706141540881,-4966.08,0.00052602,31]
[312667607,1706141540891,-796.46,0.00052602,31]
[312667608,1706141540901,-500.0,0.00052602,31]
[312667609,1706141540911,-500.0,0.00052602,31]
[312667610,1706141540920,-3061.04,0.00052602,31]
[312667611,1706141540930,-564.19,0.00052602,31]
[312667612,1706141540939,-860.59,0.00052602,31]
[312667613,1706141540949,-500.0,0.00052602,31]
[312667614,1706141540959,-553.53,0.00052602,31]
[312667615,1706141540970,-2426.6,0.00052602,31]
[312667616,1706141540979,-547.26,0.00052602,31]
[312667617,1706141540989,-500.0,0.00052602,31]
[312667618,1706141540999,-649.59,0.00052602,31]
[312667619,1706141541010,-1086.36,0.00052602,31]
[312667620,1706141541020,-959.04,0.00052602,31]
[312667621,1706141541030,-500.0,0.00052602,31]